Cogmind - Beta 13 @@@ ROGUE MODE // 2024.04.14 @ 20:58:39 Player: Cheeriohz Result: Core destroyed Performance ------------- Evolutions (5) 2500 Regions Visited (17) 3400 Robots Destroyed (219) 1095 Value Destroyed (8463) 8463 Prototype IDs (26) 520 Alien Tech Used (1) 200 Bonus (5799) 5799 TOTAL SCORE: 21977 Bonus ------- High Alert Combat Kills 747 Follower Combat Kills 965 Destroyed Z-Imprinter 1000 Triggered Deep Caves Wall 500 Exposed GOLEM Chamber 500 Met Warlord at Base 500 MAIN.C Attacked Warlord 500 Warlord Defense Kills 1022 Met R17 at Cetus 500 Friendly Fire -435 Cogmind --------- Core Integrity 0/1000 Matter 84/300 Energy 310/310 System Corruption 17% Temperature Critical (700) Movement Treading (410) Ox3 Location -4/Proximity Caves Parts ------- > --- POWER (1) -------- Reinforced Fission Core > --- PROPULSION (6) --- Armored Medium Treads > --- UTILITY (8) ------ High-capacity Storage Unit Advanced Visual Processing Unit Advanced Signal Interpreter Advanced Targeting Computer Centrium Medium Armor Plating Centrium Medium Armor Plating > --- WEAPON (2) ------- Vortex Rail Vortex Driver > --- INVENTORY (20) --- Vortex Chain Reactor Advanced Heat Sink Advanced Coolant Injector Compact Matter Pod (150) Stasis Canceller Layered Heavy Armor Plating Improved Powered Armor Advanced System Shield Advanced Variable Charge Gun Advanced Variable Charge Gun Advanced Variable Charge Gun Heavy Rocket Launcher Chain Missile Launcher Makeshift Hammer Peak State ------------ > --- POWER ------------ Quantum Reactor > --- PROPULSION ------- Light Treads Improved Medium Treads Heavy Treads Centrium Heavy Treads > --- UTILITY ---------- Advanced Heat Sink High-capacity Storage Unit Enhanced Optical Array Advanced Signal Interpreter Improved Terrain Scan Processor Advanced Targeting Computer Centrium Medium Armor Plating Makeshift Hacking Suite > --- WEAPON ----------- Advanced Variable Charge Gun Advanced Variable Charge Gun > --- INVENTORY -------- Quantum Reactor Centrium Heavy Treads Advanced Heat Sink Improved Coolant Injector Energy Well Compact Matter Pod Advanced Sensor Array Surveybot 24 Scanner Seismic Detector Centrium Medium Armor Plating Centrium Medium Armor Plating Centrium Medium Armor Plating Improved Powered Armor System Restoration Module Advanced Variable Charge Gun Advanced Variable Charge Gun Heavy Rocket Launcher Makeshift Hammer [Rating: 108] Favorites ----------- Power Nuclear Core Engine Improved Deuterium Engine Power Core Nuclear Core Reactor Quantum Reactor Propulsion Light Treads Treads Light Treads Leg Carbon-fiber Leg Wheel Armored Huge Wheel Hover Unit Cooled Antigrav System Utility Advanced Targeting Computer Device Structural Scanner Storage High-capacity Storage Unit Processor Advanced Targeting Computer Hackware Hacking Suite Protection Centrium Medium Armor Plating Weapon Heavy Ion Cannon Energy Gun Gatling Laser Energy Cannon Heavy Ion Cannon Ballistic Gun Assault Rifle Launcher Precision Grenade Launcher Special Weapon Remote Datajack Impact Weapon Makeshift Hammer Piercing Weapon Kinetic Spear Build | -11 -10 -10 -8 -7 -7 -7 -7 -7 -6 -6 -6 -6 -5 -5 -5 -5 -4 ------- Run | Yrd Mat Sub Mat Fac Low Low Zio Dee Pro Fac Ext Cet Fac Upp Upp War Pro Slots Evolved 10 | . . . 4 2 . . . . . 2 . . 2 . . . . Power . | . . . . . . . . . . . . . . . . . . Propulsion 4 | . . . 2 . . . . . . . . . 2 . . . . Utility 6 | . . . 2 2 . . . . . 2 . . . . . . . Weapon . | . . . . . . . . . . . . . . . . . . Parts Attached 300 | . 12 5 42 29 8 2 2 12 12 50 19 13 36 23 . 23 12 Power 17 | . 2 . 3 . . . . 1 1 3 2 1 2 1 . 1 . Engine 7 | . 2 . 1 . . . . . . 2 1 . . 1 . . . Core 8 | . . . 2 . . . . 1 1 1 1 . 1 . . 1 . Reactor 2 | . . . . . . . . . . . . 1 1 . . . . Propulsion 69 | . 5 . 12 6 4 . . . 2 13 2 4 4 8 . 9 . Treads 44 | . 2 . 10 6 2 . . . 1 7 2 4 4 . . 6 . Leg 13 | . . . . . 1 . . . 1 2 . . . 8 . 1 . Wheel 10 | . 3 . 2 . 1 . . . . 4 . . . . . . . Hover 2 | . . . . . . . . . . . . . . . . 2 . Flight . | . . . . . . . . . . . . . . . . . . Utility 110 | . 3 . 14 14 1 . . 6 6 21 3 4 20 10 . 6 2 Device 49 | . . . 4 7 1 . . 1 4 7 2 . 13 5 . 5 . Storage 4 | . 1 . 1 . . . . . 1 . . . . 1 . . . Processor 13 | . 1 . 2 . . . . 1 . 3 . . 3 2 . 1 . Hackware 4 | . . . 1 2 . . . . . 1 . . . . . . . Protection 40 | . 1 . 6 5 . . . 4 1 10 1 4 4 2 . . 2 Artifact . | . . . . . . . . . . . . . . . . . . Weapon 104 | . 2 5 13 9 3 2 2 5 3 13 12 4 10 4 . 7 10 Energy Gun 35 | . 1 2 1 4 1 1 . 1 . 3 5 4 5 . . 2 5 Energy Cannon 22 | . . . 5 2 1 . 1 3 2 5 . . . . . 1 2 Ballistic Gun 10 | . 1 3 4 . . . . . . . 2 . . . . . . Ballistic Cannon . | . . . . . . . . . . . . . . . . . . Launcher 17 | . . . 2 2 1 1 . . 1 2 . . 4 1 . . 3 Special Weapon 4 | . . . . . . . . . . 1 1 . . . . 2 . Impact Weapon 12 | . . . 1 1 . . 1 1 . 2 4 . . . . 2 . Slashing Weapon . | . . . . . . . . . . . . . . . . . . Piercing Weapon 4 | . . . . . . . . . . . . . 1 3 . . . Special Melee Weapon . | . . . . . . . . . . . . . . . . . . Unidentified Prototypes 16 | . . . 1 1 . . . 2 1 1 . 3 1 . . 5 1 Corrupted Parts 5 | . . . . . . . . . 1 2 . 1 . . . 1 . System Corruption 36 | . . . . . . . . . 3 10 . 9 . . . 14 . Parts Lost 63 | . 3 4 7 4 3 . . 6 4 3 . 4 11 7 . 1 6 Power 6 | . . . . . . . . 1 1 . . . 3 1 . . . Propulsion 33 | . 1 1 5 4 2 . . 2 2 1 . 2 5 4 . . 4 Utility 15 | . . 1 1 . . . . 3 1 1 . 1 2 2 . 1 2 Weapon 9 | . 2 2 1 . 1 . . . . 1 . 1 1 . . . . Highest Loss Streak 6 | . 2 2 3 2 2 . . 5 3 1 . 4 6 3 . 1 5 To Critical Strikes 4 | . . . 1 . . . . . . . . 1 . 1 . . 1 Average Slot Usage (%) 86 | . 95 91 94 99 98 92 92 91 75 87 96 93 80 60 . 87 84 Engine 3 | . 14 14 3 . . . . . . 3 5 1 . . . 3 . Core 2 | . . . 6 7 7 7 7 7 3 . . . 1 . . . 5 Treads 15 | . 11 27 30 29 23 15 15 14 4 7 23 20 16 . . 3 25 Leg 3 | . 4 . . . 4 . . . 1 5 . . . 10 . 21 . Wheel 2 | . 11 . 3 . . 7 7 7 3 7 . . . . . . . Device 8 | . . . 3 12 15 15 15 12 16 16 5 6 9 4 . 3 4 Storage 7 | . 14 14 9 7 7 7 7 7 7 6 6 6 5 3 . 5 5 Processor 11 | . 5 . 4 7 7 7 7 8 7 13 20 20 18 21 . 23 17 Hackware 5 | . . . 7 14 15 15 15 4 . 3 6 6 5 5 . 4 . Protection 7 | . 8 7 9 2 . . . 11 13 8 13 13 4 3 . 5 11 Energy Gun 4 | . 5 8 . 4 9 7 4 . . 3 5 13 10 2 . 4 4 Energy Cannon 3 | . . . 5 9 4 7 8 14 7 3 . . . . . . . Ballistic Gun 3 | . 18 18 10 . . . . . . . 2 . . . . . . Impact Weapon 1 | . . . . . . . . . 3 3 4 . . . . 3 4 Naked Turns . | . . . . . . . . . . . . . . . . . . Heaviest Build 87 | 12 32 35 64 73 61 61 64 76 79 76 69 85 80 65 49 81 87 Greatest Support 200 | 20 40 40 112 104 85 42 28 42 28 70 100 130 200 90 50 136 136 Greatest Overweight (x) 23 | . 1 1 2 . 2 2 2 2 23 23 1 2 . 20 . 4 . Average Overweight (x) . | . . . . . . 1 2 1 5 1 . . . 1 . . . Largest Inventory Capacity 20 | . 15 15 20 20 20 20 20 20 20 20 20 20 20 20 . 20 20 Average Capacity 18 | . 10 15 15 20 20 20 20 20 20 20 20 20 20 14 . 20 20 Most Carried 20 | . 8 15 20 20 20 20 20 20 18 20 20 20 20 20 . 20 20 Average Carried 16 | . 6 13 14 19 19 20 20 19 17 18 19 19 18 12 . 19 19 Final Capacity 20 | 8 15 15 20 20 20 20 20 20 20 20 20 20 20 20 20 20 20 Final Carried 20 | 6 8 14 20 20 20 20 20 19 17 19 20 20 16 20 20 20 17 Class Distribution -------------------- 54% | Scavenger-Mutant 34% | Mutant 4% | Hacker-Mutant 3% | Scavenger-Skirmisher Dominant Class ---------------- Mutant | -10/Materials Mutant | -10/Subcaves Mutant | -8/Materials Scavenger-Mutant | -7/Factory Scavenger-Mutant | -7/Lower Caves Scavenger-Mutant | -7/Lower Caves Scavenger-Mutant | -7/Zion Scavenger-Mutant | -7/Deep Caves Mutant | -6/Proximity Caves Scavenger-Mutant | -6/Factory Scavenger-Mutant | -6/Extension Scavenger-Mutant | -6/Cetus Scavenger-Skirmisher | -5/Factory Scavenger-Mutant | -5/Upper Caves Scavenger-Mutant | -5/Upper Caves Scavenger-Mutant | -5/Warlord Scavenger-Mutant | -4/Proximity Caves Resources | -11 -10 -10 -8 -7 -7 -7 -7 -7 -6 -6 -6 -6 -5 -5 -5 -5 -4 ----------- Run | Yrd Mat Sub Mat Fac Low Low Zio Dee Pro Fac Ext Cet Fac Upp Upp War Pro Matter Collected 5168 | 200 469 103 949 355 238 113 18 60 143 593 571 146 473 469 . 236 32 Remotely . | . . . . . . . . . . . . . . . . . . Salvage Created 7862 | . 532 176 1483 801 292 120 . 309 227 661 438 88 1971 519 . 160 85 Parts 401 | . 41 8 86 44 8 5 . 8 7 46 16 3 98 25 . 2 4 Haulers Intercepted 6 | . 1 . 2 . . . . . . . . . 3 . . . . Recyclers Shooed 7 | . 1 . . . . . . . . 2 . . 4 . . . . Parts Field Recycled . | . . . . . . . . . . . . . . . . . . Retrieved Matter . | . . . . . . . . . . . . . . . . . . Parts Self-Destructed 43 | . . 12 . . 3 4 . . 8 . . . . 15 . . 1 Prevented 2 | . . . . . . . . . 2 . . . . . . . . Kills | -11 -10 -10 -8 -7 -7 -7 -7 -7 -6 -6 -6 -6 -5 -5 -5 -5 -4 ------- Run | Yrd Mat Sub Mat Fac Low Low Zio Dee Pro Fac Ext Cet Fac Upp Upp War Pro Combat Hostiles Destroyed 163 | . 12 4 30 17 8 5 . 3 6 13 8 2 29 9 . 7 10 Melee 8 | . . . . . . . . . . 1 1 . . 6 . . . Guns 75 | . 12 4 16 6 5 1 . . . 7 6 2 15 . . 1 . Cannons 20 | . . . 6 6 . 2 . 3 1 2 . . . . . . . AOE 58 | . . . 8 4 3 2 . . 5 3 . . 14 3 . 6 10 Classes Destroyed 22 | . 5 1 6 2 1 . . 1 . 1 . . 1 1 . 3 . Worker 14 | . 1 . 1 3 . . . . . 2 . . 7 . . . . Builder 12 | . . . 2 1 . . . . . 2 . . 7 . . . . Tunneler 2 | . . . . . . . . . . 1 . . 1 . . . . Hauler 6 | . 1 . 2 . . . . . . . . . 3 . . . . Recycler 6 | . . . 1 1 . . . . . . . . 4 . . . . Mechanic 2 | . . . . . . . . . . . . . 2 . . . . Operator 5 | . 2 . 2 1 . . . . . . . . . . . . . Watcher 7 | . . . 2 . . . . . . 2 2 . 1 . . . . Swarmer 40 | . 3 . 3 2 . 3 . . . 3 2 . 12 4 . . 8 Grunt 59 | . 9 . 18 7 . . . . 6 2 2 . 11 . . 4 . Brawler 1 | . . . 1 . . . . . . . . . . . . . . Duelist 1 | . . . . 1 . . . . . . . . . . . . . Protector 1 | . . . . . . . . . . . . . . . . 1 . Sentry 13 | . . . 5 2 . . . . . 4 1 . 1 . . . . Specialist 2 | . . . . . . . . . . . . . . 2 . . . Hunter 15 | . . . 3 2 1 1 . . . 2 2 . 1 1 . . 2 Programmer 11 | . . . . 3 . 1 . . . 2 . . 5 . . . . Cetus Guard 2 | . . . . . . . . . . . . 2 . . . . . Striker 1 | . . . . . . . . . . . . . . . . 1 . Executioner 1 | . . . . . . . . . . . . . . . . 1 . Subdweller 4 | . . 4 . . . . . . . . . . . . . . . Z-Technician 2 | . . . . . . . . 2 . . . . . . . . . Z-Light 2 | . . . . . . . . 2 . . . . . . . . . Packrat 2 | . . . . . . . . . . . . . . 2 . . . Thug 3 | . . . . . . . . . . . 1 . . 2 . . . Savage 1 | . . . . . . . . 1 . . . . . . . . . Butcher 6 | . . . . . 6 . . . . . . . . . . . . Mutant 1 | . . . . . 1 . . . . . . . . . . . . Best Kill Streak 29 | . 3 2 8 9 5 3 . 3 4 3 4 1 29 4 . 7 4 Combat Bots Only 12 | . 3 2 6 6 5 3 . 3 4 3 3 1 12 4 . 7 4 Max Kills in Single Turn 10 | . 2 1 2 3 3 2 . 1 1 1 1 1 10 3 . 4 3 Gunslinging 1 | . 1 . . . . . . . . . . . . . . . . Exploded 4 | . . . 2 2 3 2 . . 1 1 . . 2 3 . 4 3 Melee 1 | . . . . . . . . . . 1 1 . . 1 . . . Uniques/NPCs Destroyed 1 | . . . . . . . . 1 . . . . . . . . . Z-Imprinter (-7/Deep Caves) Combat | -11 -10 -10 -8 -7 -7 -7 -7 -7 -6 -6 -6 -6 -5 -5 -5 -5 -4 -------- Run | Yrd Mat Sub Mat Fac Low Low Zio Dee Pro Fac Ext Cet Fac Upp Upp War Pro Hostile Shots Fired 1448 | . 77 31 179 124 21 41 . 52 42 121 102 19 245 121 . 55 218 Missed 397 | . 17 10 52 34 6 14 . 16 4 38 25 5 54 32 . 21 69 Damage Taken 19302 | . 687 586 1875 1445 478 369 . 994 897 1267 880 456 3940 1605 . 610 3213 Core 2347 | . 93 74 237 190 50 83 . 141 101 172 72 123 259 306 . 37 409 Absorbed by Shields 393 | . . . . . . . . . . . 166 . . . . 227 . Reduced by Siege Mode 41 | . . . . . . . . . . . . . 41 . . . . Redirected to Shielding 168 | . . . 8 . . . . 115 . 45 . . . . . . . Regen/Repaired (Parts) 858 | . . . 163 . . . . . . 52 . . 103 . . 540 . Core Remaining (%) 52 | 100 . 33 56 . . . . . 19 . . 56 . . . . . Volleys Fired 660 | . 77 32 116 53 24 47 . 27 14 39 34 10 116 9 . 10 52 Largest 2 | . 2 2 2 2 2 2 . 2 2 2 2 2 2 2 . 1 2 Hottest 240 | . 60 88 143 160 160 145 . 132 130 165 160 160 240 160 . 240 240 Shots Fired 988 | . 134 39 199 87 33 56 . 45 21 65 57 19 156 12 . 10 55 Gun 665 | . 134 39 135 21 16 15 . 1 . 33 55 19 141 10 . 7 39 Cannon 253 | . . . 51 62 14 40 . 44 12 23 . . . . . . 7 Launcher 64 | . . . 13 4 3 1 . . 9 8 . . 15 2 . . 9 Special 6 | . . . . . . . . . . 1 2 . . . . 3 . Kinetic 290 | . 122 21 127 . . . . . . . 20 . . . . . . Thermal 563 | . . 4 51 83 30 55 . 36 12 56 35 19 141 10 . 7 24 Explosive 67 | . . . 13 4 3 1 . . 9 8 . . 15 2 . 3 9 Electromagnetic 43 | . 12 14 8 . . . . 9 . . . . . . . . . Entropic 22 | . . . . . . . . . . . . . . . . . 22 Robot Hit Streak 26 | . 9 8 13 15 20 21 . 5 9 20 26 7 17 2 . 1 10 Robot Miss Streak 6 | . 3 2 5 4 2 2 . 5 1 3 6 3 6 1 . . 1 Penetration Max 1 | . . . 1 . . . . . . . . . . . . . . Secondary Targets 2 | . 1 . . . 1 . . . . . . . . . . . . Max Gunslinging Chain 1 | . 1 . . . 1 . . . . . . . . . . . . Shots Hit Robots 599 | . 83 25 112 60 16 20 . 17 13 47 51 17 81 24 . 1 32 Core Hits 434 | . 28 9 78 48 23 8 . 10 14 43 32 16 81 12 . 14 18 Critical Kills 1 | . . . 1 . . . . . . . . . . . . . . Critical Parts Destroyed 3 | . . . 2 . . . . . . . 1 . . . . . . Critical Strikes 10 | . 1 1 3 . . . . . . . 1 . . 1 . 2 1 Destroy 4 | . . . 3 . . . . . . . 1 . . . . . . Corrupt 2 | . 1 1 . . . . . . . . . . . . . . . Sever 2 | . . . . . . . . . . . . . . . . 2 . Impale 1 | . . . . . . . . . . . . . . 1 . . . Sunder 1 | . . . . . . . . . . . . . . . . . 1 Melee Attacks 124 | . . . . 2 . . 11 2 3 16 22 . . 34 . 34 . Impact 56 | . . . . 2 . . 11 2 3 16 22 . . . . . . Slashing . | . . . . . . . . . . . . . . . . . . Piercing 68 | . . . . . . . . . . . . . . 34 . 34 . Sneak Attacks 5 | . . . . . . . . . . 2 1 . . 2 . . . Combat Hostiles . | . . . . . . . . . . . . . . . . . . Follow-up Attacks . | . . . . . . . . . . . . . . . . . . Damage Inflicted 26306 | . 1144 406 3021 2294 934 738 . 658 989 2105 1250 435 6081 1205 . 1886 3160 Guns 10186 | . 1133 406 1438 501 366 326 . 24 . 759 1084 435 2467 45 . 80 1122 Cannons 3607 | . . . 661 1069 . 213 . 477 270 346 . . . . . . 571 Explosions 10986 | . . . 922 724 568 199 . 157 719 750 . . 3614 196 . 1670 1467 Melee 1376 | . . . . . . . . . . 250 166 . . 960 . . . Ramming 15 | . 11 . . . . . . . . . . . . 4 . . . Kinetic 2975 | . 1009 250 1422 . . . . . . . 294 . . . . . . Thermal 10885 | . . 43 661 1691 366 539 . 560 270 1105 790 435 3696 45 . 80 604 Explosive 9479 | . . . 922 603 568 199 . . 719 750 . . 2385 196 . 1670 1467 Electromagnetic 351 | . 124 113 16 . . . . 98 . . . . . . . . . Impact 416 | . . . . . . . . . . 250 166 . . . . . . Slashing 136 | . . . . . . . . . . . . . . . . 136 . Piercing 960 | . . . . . . . . . . . . . . 960 . . . Entropic 1089 | . . . . . . . . . . . . . . . . . 1089 Highest Corruption 24 | . . . . 2 1 3 3 . 3 15 15 24 10 10 . 17 17 Average Corruption 6 | . . . . 1 1 2 3 . 3 4 15 15 4 5 . 14 17 Corruption Purged 12 | . . . . 2 . . . . . . . . . 10 . . . Corruption Blocked . | . . . . . . . . . . . . . . . . . . Effects 225 | . . . . 9 4 18 1 . 7 16 67 11 19 51 . 2 20 Message Errors 63 | . . . . 4 1 2 . . 2 8 16 2 6 13 . 1 8 Matter Fused 52 | . . . . . 1 6 1 . 2 2 16 3 4 12 . 1 4 Heat Flow Errors 24 | . . . . 2 . 1 . . 2 . 8 1 1 6 . . 3 Energy Discharges 21 | . . . . 1 . 2 . . . 1 8 1 . 8 . . . Parts Rejected 4 | . . . . . . . . . . 1 1 . 1 1 . . . Parts Fused 1 | . . . . . . . . . . . . . . . . . 1 Data Loss (minor) 28 | . . . . 1 1 2 . . . 4 6 2 4 7 . . 1 Data Loss (major) 9 | . . . . . . 1 . . . . 5 1 . 2 . . . Misfires 13 | . . . . 1 1 1 . . 1 . 5 1 1 1 . . 1 Alerts 5 | . . . . . . 2 . . . . 2 . . 1 . . . Weapon Failures 5 | . . . . . . 1 . . . . . . 2 . . . 2 Overload Shots 21 | . . . . . . . . . . . . . 8 . . 2 11 Effects 1 | . . . . . . . . . . . . . 1 . . . . Short Circuit 1 | . . . . . . . . . . . . . 1 . . . . Overflow Damage 1257 | . . . 40 93 12 8 . 7 28 227 31 . 502 122 . 7 180 Projectiles 101 | . . . 22 39 . 8 . 7 25 . . . . . . . . Explosions 830 | . . . 18 54 12 . . . 3 54 . . 502 . . 7 180 Melee 326 | . . . . . . . . . . 173 31 . . 122 . . . Knockbacks 4 | . . . . . . . . . . 2 2 . . . . . . Impact 4 | . . . . . . . . . . 2 2 . . . . . . Kinetic . | . . . . . . . . . . . . . . . . . . Secondary . | . . . . . . . . . . . . . . . . . . Self-Inflicted Damage 1030 | . 5 . 26 166 118 11 . . 172 99 . . 342 24 . . 67 Shots 26 | . . . 1 5 3 1 . . 5 2 . . 6 1 . . 2 Rammed 1 | . 1 . . . . . . . . . . . . . . . . Targets Rammed 2 | . 1 . . . . . . . . . . . . 1 . . . Kicked 1 | . . . . . . . . . . . . . . 1 . . . Crushed . | . . . . . . . . . . . . . . . . . . Highest Temperature 700 | . 105 14 249 209 139 255 . 176 419 224 509 109 591 259 . 134 700 Average Temperature 86 | . 30 10 52 48 59 58 . 37 207 38 160 32 126 72 . 37 120 Received Heat Transfer 3822 | . 339 30 702 303 . 12 . 124 361 225 246 72 1015 234 . 33 126 Effects 26 | . . . 5 . . . . . 1 . 7 . 12 . . . 1 Shutdowns 3 | . . . . . . . . . 1 . 1 . 1 . . . . Energy Bleed 7 | . . . 2 . . . . . . . 2 . 3 . . . . Interference 6 | . . . 3 . . . . . . . . . 3 . . . . Matter Decay 2 | . . . . . . . . . . . 1 . 1 . . . . Short Circuit 4 | . . . . . . . . . . . 1 . 3 . . . . Damage (minor) 1 | . . . . . . . . . . . . . 1 . . . . Damage (major) 2 | . . . . . . . . . . . 2 . . . . . . Damage (core) 1 | . . . . . . . . . . . . . . . . . 1 Siege Activations 3 | . . . . . . . . . . . . . 3 . . . . Total Turns 25 | . . . . . . . . . . . . . 25 . . . . Longest Duration 13 | . . . . . . . . . . . . . 13 . . . . Robots Corrupted . | . . . . . . . . . . . . . . . . . . Combat Hostiles . | . . . . . . . . . . . . . . . . . . Parts Fried 6 | . . 2 . . . . . . . 1 3 . . . . . . Impact Corruptions 8 | . . . . . . . . . . 7 1 . . . . . . Robots Melted 2 | . . . . 1 . . . . . . 1 . . . . . . Combat Hostiles 2 | . . . . 1 . . . . . . 1 . . . . . . Parts Melted 37 | . . 2 . 7 3 3 . 4 1 7 4 2 4 . . . . Heat Transferred 15584 | . . 50 962 2544 850 959 . 431 370 2184 1775 886 3949 74 . 50 500 Parts Sabotaged . | . . . . . . . . . . . . . . . . . . Parts Stolen . | . . . . . . . . . . . . . . . . . . Parts Stripped . | . . . . . . . . . . . . . . . . . . Power Chain Reactions 1 | . . . . . . . . 1 . . . . . . . . . Alert | -11 -10 -10 -8 -7 -7 -7 -7 -7 -6 -6 -6 -6 -5 -5 -5 -5 -4 ------- Run | Yrd Mat Sub Mat Fac Low Low Zio Dee Pro Fac Ext Cet Fac Upp Upp War Pro Peak Influence 1291 | . 248 . 660 360 . . . . . 371 289 213 1291 . . . . Initial 266 | . . . . 266 . . . . . . 55 129 119 . . . . Average 257 | . 74 . 329 239 . . . . . 154 151 158 727 . . . . Maximum Alert Level 4 | . 1 . 2 1 . . . . . 1 1 1 4 . . . . Low Security (%) 55 | . 95 . 40 36 . . . . . 63 61 83 32 . . . . Level 1 27 | . 4 . 6 63 . . . . . 36 38 16 . . . . . Level 2 9 | . . . 53 . . . . . . . . . 1 . . . . Level 3 5 | . . . . . . . . . . . . . 48 . . . . Level 4 2 | . . . . . . . . . . . . . 17 . . . . Level 5 . | . . . . . . . . . . . . . . . . . . High Security . | . . . . . . . . . . . . . . . . . . Max Security . | . . . . . . . . . . . . . . . . . . Squads Dispatched 23 | . 3 . 5 5 . . . . . 2 . . 8 . . . . Investigation 2 | . 1 . . . . . . . . . . . 1 . . . . Extermination 6 | . . . . 3 . . . . . 2 . . 1 . . . . Reinforcement 13 | . 2 . 5 2 . . . . . . . . 4 . . . . Assault 1 | . . . . . . . . . . . . . 1 . . . . Garrison 1 | . . . . . . . . . . . . . 1 . . . . Intercept . | . . . . . . . . . . . . . . . . . . Searches Triggered . | . . . . . . . . . . . . . . . . . . Construction Impeded 3 | . . . 2 . . . . . . . . . 1 . . . . Haulers Reinforced 2 | . . . . . . . . . . . . . 2 . . . . Active Scanning Responses . | . . . . . . . . . . . . . . . . . . Cargo Convoy Interrupts 1 | . . . . . . . . . . . . . 1 . . . . Stealth | -11 -10 -10 -8 -7 -7 -7 -7 -7 -6 -6 -6 -6 -5 -5 -5 -5 -4 --------- Run | Yrd Mat Sub Mat Fac Low Low Zio Dee Pro Fac Ext Cet Fac Upp Upp War Pro Distress Signals 15 | . 3 . 4 . . . . . . 1 2 2 1 . . 2 . Communications Jammed . | . . . . . . . . . . . . . . . . . . Distress Signals . | . . . . . . . . . . . . . . . . . . Times Spotted 288 | . 29 6 46 22 8 8 . 19 6 21 20 6 37 13 . 36 11 Peak Tracking Total 16 | . 5 2 7 6 6 3 . 15 4 4 3 5 7 4 . 16 4 Tactical Retreats 18 | . 2 1 2 . . 3 . 1 . 5 2 . 1 . . 1 . Traps | -11 -10 -10 -8 -7 -7 -7 -7 -7 -6 -6 -6 -6 -5 -5 -5 -5 -4 ------- Run | Yrd Mat Sub Mat Fac Low Low Zio Dee Pro Fac Ext Cet Fac Upp Upp War Pro Traps Triggered 7 | . 1 . . . . . . . . 5 1 . . . . . . Indirectly . | . . . . . . . . . . . . . . . . . . Trap Hack Attempts . | . . . . . . . . . . . . . . . . . . Triggered . | . . . . . . . . . . . . . . . . . . Disarmed . | . . . . . . . . . . . . . . . . . . Reprogrammed . | . . . . . . . . . . . . . . . . . . Reused . | . . . . . . . . . . . . . . . . . . Traps Extracted . | . . . . . . . . . . . . . . . . . . Installed . | . . . . . . . . . . . . . . . . . . Triggered 18 | . . 2 . . . . . . 1 . . . 2 . . 12 1 Most Traps Carried 1 | . . 1 . . . . . . . . . . . . . . . Machines | -11 -10 -10 -8 -7 -7 -7 -7 -7 -6 -6 -6 -6 -5 -5 -5 -5 -4 ---------- Run | Yrd Mat Sub Mat Fac Low Low Zio Dee Pro Fac Ext Cet Fac Upp Upp War Pro Machines Disabled 36 | . 1 1 1 5 . . . 2 1 . 2 . 21 1 . 1 . Max in Single Turn 9 | . 1 1 1 4 . . . 1 1 . 1 . 9 1 . 1 . Garrison Access 2 | . . . . . . . . . . 1 . . 1 . . . . Machines Repaired . | . . . . . . . . . . . . . . . . . . Machines Dismantled . | . . . . . . . . . . . . . . . . . . Machines Sabotaged . | . . . . . . . . . . . . . . . . . . Overloaded Fab Kills . | . . . . . . . . . . . . . . . . . . Hacking | -11 -10 -10 -8 -7 -7 -7 -7 -7 -6 -6 -6 -6 -5 -5 -5 -5 -4 --------- Run | Yrd Mat Sub Mat Fac Low Low Zio Dee Pro Fac Ext Cet Fac Upp Upp War Pro Machines Accessed 44 | . 4 1 8 6 1 1 1 . . 10 8 1 2 . . 1 . Terminals 31 | . 4 . 6 4 . . . . . 7 8 1 1 . . . . Fabricators 2 | . . . . 2 . . . . . . . . . . . . . Repair Stations 4 | . . . 2 . . . . . . 1 . . 1 . . . . Recycling Units . | . . . . . . . . . . . . . . . . . . Scanalyzers 1 | . . . . . . . . . . 1 . . . . . . . Garrison Access 1 | . . . . . . . . . . 1 . . . . . . . Total Hacks 115 | . 12 1 26 16 1 1 3 . . 26 16 2 10 . . 1 . Successful 55 | . 6 1 15 4 1 1 3 . . 14 4 . 5 . . 1 . Failed 60 | . 6 . 11 12 . . . . . 12 12 2 5 . . . . Catastrophic 14 | . 1 . 3 1 . . . . . 4 3 1 1 . . . . Database Lockouts . | . . . . . . . . . . . . . . . . . . Manual 61 | . 10 . 13 12 . . 1 . . 16 4 1 3 1 . . . Terminals 88 | . 12 . 22 12 . . . . . 19 16 2 5 . . . . Fabricators 4 | . . . . 4 . . . . . . . . . . . . . Repair Stations 12 | . . . 4 . . . . . . 3 . . 5 . . . . Recycling Units . | . . . . . . . . . . . . . . . . . . Scanalyzers 2 | . . . . . . . . . . 2 . . . . . . . Garrison Access 2 | . . . . . . . . . . 2 . . . . . . . Terminal Hacks 27 | . 4 1 6 1 1 1 3 . . 4 4 . 1 . . 1 . Part Schematic 3 | . . . . . . . 3 . . . . . . . . . . Robot Analysis 5 | . 3 . 2 . . . . . . . . . . . . . . Open Door 5 | . . . . . 1 1 . . . . 2 . . . . 1 . Level Access Points 1 | . . . 1 . . . . . . . . . . . . . . Branch Access Points 3 | . . . . 1 . . . . . 1 . . 1 . . . . Terminal Index 2 | . . . 1 . . . . . . 1 . . . . . . . Alert Level 1 | . 1 . . . . . . . . . . . . . . . . Unreport Threat 5 | . . . 2 . . . . . . 1 2 . . . . . . Zone Layout 1 | . . . . . . . . . . 1 . . . . . . . Derelict Proto ID Bank 1 | . . 1 . . . . . . . . . . . . . . . Fabricator Hacks . | . . . . . . . . . . . . . . . . . . Repair Station Hacks 9 | . . . 4 . . . . . . 2 . . 3 . . . . Scan Component 5 | . . . 2 . . . . . . 1 . . 2 . . . . Repair 4 | . . . 2 . . . . . . 1 . . 1 . . . . Recycling Unit Hacks . | . . . . . . . . . . . . . . . . . . Scanalyzer 2 | . . . . . . . . . . 2 . . . . . . . Insert Component 1 | . . . . . . . . . . 1 . . . . . . . Analyze 1 | . . . . . . . . . . 1 . . . . . . . Garrison Access Hacks 1 | . . . . . . . . . . 1 . . . . . . . Seal Access 1 | . . . . . . . . . . 1 . . . . . . . Unauthorized Hacks 16 | . 2 . 5 3 . . . . . 5 . . 1 . . . . Terminals 15 | . 2 . 5 2 . . . . . 5 . . 1 . . . . Botnet 15 | . 2 . 5 2 . . . . . 5 . . 1 . . . . Fabricators 1 | . . . . 1 . . . . . . . . . . . . . Fabnet 1 | . . . . 1 . . . . . . . . . . . . . Repair Stations . | . . . . . . . . . . . . . . . . . . Recycling Units . | . . . . . . . . . . . . . . . . . . Scanalyzers . | . . . . . . . . . . . . . . . . . . Garrison Access . | . . . . . . . . . . . . . . . . . . Data Cores Recovered 1 | . . . 1 . . . . . . . . . . . . . . Used . | . . . . . . . . . . . . . . . . . . Hacking Detections 34 | . 4 . 7 5 . . . . . 9 6 1 2 . . . . Full Trace Events 2 | . . . 1 . . . . . . . . . 1 . . . . Feedback Events . | . . . . . . . . . . . . . . . . . . Feedback Blocked . | . . . . . . . . . . . . . . . . . . Robot Schematics Acquired 2 | . . . . . . . 2 . . . . . . . . . . Robots Built . | . . . . . . . . . . . . . . . . . . Authchips . | . . . . . . . . . . . . . . . . . . Time . | . . . . . . . . . . . . . . . . . . Total Robot Build Rating . | . . . . . . . . . . . . . . . . . . Part Schematics Acquired 19 | . . . . . . . 18 . . 1 . . . . . . . Parts Built . | . . . . . . . . . . . . . . . . . . Authchips . | . . . . . . . . . . . . . . . . . . Time . | . . . . . . . . . . . . . . . . . . Total Part Build Rating . | . . . . . . . . . . . . . . . . . . Parts Repaired 4 | . . . 2 . . . . . . 1 . . 1 . . . . Time 198 | . . . 52 . . . . . . 22 . . 124 . . . . Parts Recycled . | . . . . . . . . . . . . . . . . . . Recycled Matter . | . . . . . . . . . . . . . . . . . . Retrieved Matter . | . . . . . . . . . . . . . . . . . . Retrieved Components . | . . . . . . . . . . . . . . . . . . Parts Scanalyzed 1 | . . . . . . . . . . 1 . . . . . . . Part Schematics Acquired 1 | . . . . . . . . . . 1 . . . . . . . Parts Damaged . | . . . . . . . . . . . . . . . . . . Bothacking | -11 -10 -10 -8 -7 -7 -7 -7 -7 -6 -6 -6 -6 -5 -5 -5 -5 -4 ------------ Run | Yrd Mat Sub Mat Fac Low Low Zio Dee Pro Fac Ext Cet Fac Upp Upp War Pro Used RIF Installer . | . . . . . . . . . . . . . . . . . . Robots Hacked 5 | . . . . . . . . . . 2 1 . 1 . . 1 . Non-combat . | . . . . . . . . . . . . . . . . . . Combat 3 | . . . . . . . . . . 1 . . 1 . . 1 . Robot Hacks Applied . | . . . . . . . . . . . . . . . . . . Manual 2 | . . . . . . . . . . 1 1 . . . . . . Relay Couplers Released 5 | . . . . . . . . . . . . . 5 . . . . Machine Destruction 2 | . . . . . . . . . . . . . 2 . . . . Programmers 3 | . . . . . . . . . . . . . 3 . . . . Fabnet Peak Effective % 3 | . . . . . . . . . 3 3 3 3 1 1 1 1 . Autooverrided 3 | . . . . . . . . . . 1 . . 1 . . 1 . Robots Rewired 14 | . . . . . . . . . . . 9 . . . . 5 . Allies Hacked 2 | . . . . . . . . . . . . . . . . 2 . Hacks Repelled . | . . . . . . . . . . . . . . . . . . Allies | -11 -10 -10 -8 -7 -7 -7 -7 -7 -6 -6 -6 -6 -5 -5 -5 -5 -4 -------- Run | Yrd Mat Sub Mat Fac Low Low Zio Dee Pro Fac Ext Cet Fac Upp Upp War Pro Total Allies 38 | . . . . . . . 6 . . 2 17 . 7 . . 6 . Largest Group 12 | . . . . . . . 6 6 . 1 12 8 6 . . 6 . Highest-Rated Group 476 | . . . . . . . 288 288 . 85 476 197 186 . . 314 . Highest-Rated Ally 159 | . . . . . . . 96 96 . 85 159 39 31 . . 65 . Total Orders . | . . . . . . . . . . . . . . . . . . Ally Attacks 215 | . . . . . . . . 64 . . 82 49 13 . . 7 . Total Damage 4527 | . . . . . . . . 1380 . . 1729 928 166 . . 324 . Kills 31 | . . . . . . . . 6 . . 13 9 2 . . 1 . Allies Corrupted 1 | . . . . . . . . . . 1 . . . . . . . Allies Melted 3 | . . . . . . . . . . . 1 . . . . 2 . Intel | -11 -10 -10 -8 -7 -7 -7 -7 -7 -6 -6 -6 -6 -5 -5 -5 -5 -4 ------- Run | Yrd Mat Sub Mat Fac Low Low Zio Dee Pro Fac Ext Cet Fac Upp Upp War Pro Robot Analysis Total 5 | . 3 . 2 . . . . . . . . . . . . . . Derelict Logs Recovered 7 | . . 1 . . 1 . 2 . 3 . . . . . . . . Drone Launches . | . . . . . . . . . . . . . . . . . . Drone Recoveries . | . . . . . . . . . . . . . . . . . . Exploration | -11 -10 -10 -8 -7 -7 -7 -7 -7 -6 -6 -6 -6 -5 -5 -5 -5 -4 ------------- Run | Yrd Mat Sub Mat Fac Low Low Zio Dee Pro Fac Ext Cet Fac Upp Upp War Pro Turns Passed 20728 | . 1313 1579 1654 1874 674 858 927 727 1902 2005 1520 329 1191 2424 . 1292 459 Spaces Moved 9444 | 1 809 878 707 975 373 394 684 317 320 748 712 161 413 1146 1 606 199 Core 700 | . . . . . . . . . 49 7 . . . 644 . . . Treads 5469 | . 301 878 639 975 351 218 . 200 58 192 712 161 413 89 . 83 199 Legs 1165 | 1 81 . . . . . . . . 161 . . . 413 1 508 . Wheels 2095 | . 427 . 68 . 22 176 684 117 213 388 . . . . . . . Hover 15 | . . . . . . . . . . . . . . . . 15 . Flight . | . . . . . . . . . . . . . . . . . . Fastest Speed 50 | 120 90 160 117 156 130 130 130 130 130 110 160 160 160 50 120 120 168 Average Speed 165 | 120 122 163 160 157 156 189 130 197 342 170 177 167 160 143 120 181 168 Slowest Speed 1200 | 120 160 240 240 160 237 237 130 237 1200 1200 240 320 160 1050 120 290 168 Overloaded Moves . | . . . . . . . . . . . . . . . . . . Propulsion Burnouts . | . . . . . . . . . . . . . . . . . . Robots Hopped . | . . . . . . . . . . . . . . . . . . Cave-ins Triggered . | . . . . . . . . . . . . . . . . . . Exploration Rate (%) 51 | 2 86 45 63 25 56 53 82 58 57 32 85 73 19 66 1 76 46 Regions Visited 17 Branch Regions 12 Pre-discovered Areas 4 | . . 1 . . 1 . 1 . 1 . . . . . . . . Known Exits Taken 10 | . . . 1 1 . . . . 1 1 1 1 1 1 1 1 . Unknown Exits Taken 7 | 1 1 1 . . 1 1 1 1 . . . . . . . . . Scrap Searched 14 | . . 4 . . 2 . 3 . . . . . . 4 . . 1 Spaces Dug 194 | . . . 18 15 24 25 2 2 15 16 5 . 17 18 . 28 9 Terrain Destroyed 672 | . . . 94 38 50 32 2 3 88 40 5 1 147 35 . 38 99 Melee 50 | . . . . 2 . . 2 2 2 11 5 . . 1 . 25 . Projectile 121 | . . . 26 8 5 15 . 1 1 3 . 1 29 4 . 3 25 AOE 501 | . . . 68 28 45 17 . . 85 26 . . 118 30 . 10 74 Terrain Rammed . | . . . . . . . . . . . . . . . . . . Walls Destroyed . | . . . . . . . . . . . . . . . . . . Machines Disabled . | . . . . . . . . . . . . . . . . . . Actions | -11 -10 -10 -8 -7 -7 -7 -7 -7 -6 -6 -6 -6 -5 -5 -5 -5 -4 --------- Run | Yrd Mat Sub Mat Fac Low Low Zio Dee Pro Fac Ext Cet Fac Upp Upp War Pro Total 13433 | . 996 987 1028 1222 432 447 710 368 1110 1396 889 210 775 1856 . 743 264 Wait 2521 | . 83 61 110 130 8 5 13 4 758 495 33 . 193 615 . 13 . Move 9427 | . 808 877 706 974 372 393 683 316 319 747 711 160 412 1145 . 605 199 Hop . | . . . . . . . . . . . . . . . . . . Pick Up 128 | . 8 6 26 14 8 . . 3 . 18 2 10 8 16 . 8 1 Fast Attach 110 | . 3 3 18 7 4 . 1 2 4 18 6 5 9 16 . 14 . Attach 52 | . 3 1 8 7 1 . . 2 5 4 . 2 7 3 . 5 4 Detach 38 | . 1 2 6 4 2 . . 2 3 2 1 2 3 3 . 7 . Swap 140 | . 6 1 16 15 3 2 1 8 4 28 13 6 20 5 . 4 8 Drop 147 | . 6 4 22 16 10 . 1 2 . 29 7 15 7 9 . 19 . Fire 660 | . 77 32 116 53 24 47 . 27 14 39 34 10 116 9 . 10 52 Melee 124 | . . . . 2 . . 11 2 3 16 22 . . 34 . 34 . Ram 1 | . 1 . . . . . . . . . . . . . . . . Kick 1 | . . . . . . . . . . . . . . 1 . . . Crush . | . . . . . . . . . . . . . . . . . . Escape Stasis 2 | . . . . . . . . . . . 2 . . . . . . Rewire 82 | . . . . . . . . . . . 58 . . . . 24 . Trap . | . . . . . . . . . . . . . . . . . . Miscellaneous . | . . . . . . . . . . . . . . . . . . Route ------- -11/Scrapyard -10/Materials (discovered 5 exits: [*Mat x2] / *Min x2 / *Sub) -10/Subcaves -8/Materials (discovered 3 exits: *Fac x3) -7/Factory (discovered 4 exits: *Fac / Sto / *Low x2) -7/Lower Caves -7/Lower Caves -7/Zion (discovered 2 exits: [*Dee] / [*Pro]) -7/Deep Caves -6/Proximity Caves -6/Factory (discovered 6 exits: *Fac x2 / Low x2 / *Ext x2) -6/Extension (discovered 3 exits: *Fac x2 / *Cet) -6/Cetus (discovered 2 exits: *Fac / [*Arc]) -5/Factory (discovered 2 exits: *Upp x2) -5/Upper Caves -5/Upper Caves -5/Warlord -4/Proximity Caves History --------- Turn | Location | Event 1 | -11/Scrapyard | Discovered new exit (range 0) 1 | -11/Scrapyard | Entered Materials 157 | -10/Materials | Discovered new exit (range 16) 190 | -10/Materials | Identified exit to Mines 315 | -10/Materials | Build established: Mutant 451 | -10/Materials | Discovered new exit (range 5) 488 | -10/Materials | Discovered exit to Mines (range 16) 707 | -10/Materials | Discovered new exit (range 13) 1248 | -10/Materials | Discovered new exit (range 10) 1314 | -10/Materials | Entered Subcaves 1344 | -10/Subcaves | Learned location of Zion (-7) 1344 | -10/Subcaves | Met a Zionite searching for "candidates" 1386 | -10/Subcaves | Learned Materials trap positions 1549 | -10/Subcaves | Visited 4L-MR0's lab 1568 | -10/Subcaves | Found Flightbrick 1749 | -10/Subcaves | Shifting Twisted Machinery released Mak. Hammer 1753 | -10/Subcaves | Shifting Twisted Machinery released Sub. Power Source 2167 | -10/Subcaves | Core integrity fell below 50% 2279 | -10/Subcaves | A swath of the cavern ceiling suddenly collapsed 2874 | -10/Subcaves | Discovered new exit (range 8) 2893 | -10/Subcaves | Entered Materials 2893 | -8/Materials | Evolved 4 slots: Propulsion x2, Utility x2 2894 | -8/Materials | Loaded intel: 18 trap records 3021 | -8/Materials | Repaired Lgt. Treads 3143 | -8/Materials | Repaired Lgt. Treads 3235 | -8/Materials | Build established: Scavenger-Mutant 3706 | -8/Materials | Lost 3 parts (2n1u) 3868 | -8/Materials | Build established: Mutant 4319 | -8/Materials | Identified exit to Factory 4547 | -8/Materials | Entered Factory 4547 | -7/Factory | Evolved 2 slots: Utility x2 5006 | -7/Factory | Discovered new exit (range 15) 5013 | -7/Factory | Build established: Hacker-Mutant 5692 | -7/Factory | Build established: Scavenger-Mutant 5764 | -7/Factory | Identified exit to Storage 5764 | -7/Factory | Identified exit to Lower Caves 5988 | -7/Factory | Discovered new exit (range 8) 6421 | -7/Factory | Entered Lower Caves 6470 | -7/Lower Caves | Attacked by a faux Warlord 7044 | -7/Lower Caves | Discovered new exit (range 8) 7095 | -7/Lower Caves | Entered another Lower Caves area 7410 | -7/Lower Caves | Spotted B-75 Beast 7938 | -7/Lower Caves | Discovered new exit (range 14) 7953 | -7/Lower Caves | Entered Zion 8026 | -7/Zion | Discovered new exit (range 16) 8065 | -7/Zion | System corruption cleaned by Quarantine Array 8103 | -7/Zion | Learned location of 1 exit from Proximity Caves 8116 | -7/Zion | Loaded intel: 5 derelict terminal locations 8158 | -7/Zion | Gained Derelict followers 8387 | -7/Zion | Given A8's code to call for help 8493 | -7/Zion | Learned location of 1 exit from Lower Caves 8537 | -7/Zion | Learned Factory fabricator intel 8610 | -7/Zion | Learned location of Extension (-6) 8851 | -7/Zion | Build established: Hacker-Mutant 8867 | -7/Zion | Enhanced Grunt warped into view, answering call for help 8867 | -7/Zion | Discovered new exit (range 5) 8868 | -7/Zion | Enhanced Grunt warped into view, answering call for help 8869 | -7/Zion | Saw the warning signs outside the Deep Caves entrance 8880 | -7/Zion | Entered Deep Caves 8880 | -7/Deep Caves | Accompanied by 6 allies 9016 | -7/Deep Caves | Attacked by Z-Imprinter 9034 | -7/Deep Caves | Destroyed Z-Imprinter 9076 | -7/Deep Caves | Lost 4 allies 9091 | -7/Deep Caves | Found Prototype Protection 9091 | -7/Deep Caves | Identified Zio. Weapon Casing 9177 | -7/Deep Caves | Z-Facility disabled 9401 | -7/Deep Caves | Build established: Scavenger-Mutant 9448 | -7/Deep Caves | Found Surveybot 24 Chip 9452 | -7/Deep Caves | Found Surveybot 24 Scanner 9479 | -7/Deep Caves | Discovered new exit (range 13) 9560 | -7/Deep Caves | Spotted AG-75748 9565 | -7/Deep Caves | Exposed GOLEM chamber 9566 | -7/Deep Caves | Triggered Deep Caves wall 9577 | -7/Deep Caves | Core integrity fell below 50% 9607 | -7/Deep Caves | Entered Proximity Caves 9608 | -6/Proximity Caves | Identified exit to Factory 9635 | -6/Proximity Caves | Lost 5 parts (2n3u) 9725 | -6/Proximity Caves | Found Alien Artifact 9725 | -6/Proximity Caves | Identified Dimensional Node Initializer 9725 | -6/Proximity Caves | Initialized slip node 9831 | -6/Proximity Caves | Build established: Mutant 10219 | -6/Proximity Caves | Learned 8 Factory zone layouts 10368 | -6/Proximity Caves | Received a Behemoth hack from an annoying Tinkerer 10693 | -6/Proximity Caves | Lost 3 parts (1p1n1u) 10911 | -6/Proximity Caves | Core integrity fell below 20% 11509 | -6/Proximity Caves | Entered Factory 11509 | -6/Factory | Evolved 2 slots: Utility x2 11510 | -6/Factory | Identified exit to Extension 11511 | -6/Factory | Loaded intel: 5 fabricator locations 12304 | -6/Factory | Build established: Scavenger-Mutant 12535 | -6/Factory | Discovered new exit (range 13) 12555 | -6/Factory | Identified exit to Factory 12854 | -6/Factory | Repaired Imp. Deuterium Engine 13182 | -6/Factory | Discovered exit to Factory (range 14) 13283 | -6/Factory | Spotted B-75 Beast 13337 | -6/Factory | Befriended a Behemoth using the annoying Tinkerer's hack 13362 | -6/Factory | Build established: Scavenger-Assassin 13368 | -6/Factory | Identified exit to Lower Caves 13384 | -6/Factory | System corruption reached 10% 13514 | -6/Factory | Entered Extension 13618 | -6/Extension | Rescued A7 13713 | -6/Extension | Build established: Scavenger-Mutant 13891 | -6/Extension | Rescued a captive Derelict 13938 | -6/Extension | Rescued a captive Derelict 14311 | -6/Extension | Build established: Commander-Mutant 14334 | -6/Extension | Spotted B-75 Beast 14345 | -6/Extension | Spotted B-75 Beast 14347 | -6/Extension | Befriended a Behemoth using the annoying Tinkerer's hack 14374 | -6/Extension | Allies destroyed B-75 Beast 14385 | -6/Extension | Extracted ID and sensor layout for unrecognized location from A7's data core 14416 | -6/Extension | Lost 4 allies 14443 | -6/Extension | Discovered exit to Factory (range 3) 14571 | -6/Extension | Discovered new exit (range 22) 14572 | -6/Extension | Discovered exit to Factory (range 21) 14659 | -6/Extension | Build established: Scavenger-Mutant 14687 | -6/Extension | Rescued a captive Derelict 14728 | -6/Extension | Rescued a captive Derelict 14863 | -6/Extension | Rescued a captive Derelict 14864 | -6/Extension | Rescued a captive Derelict 15024 | -6/Extension | Identified exit to Cetus 15034 | -6/Extension | Entered Cetus 15034 | -6/Cetus | Accompanied by 8 allies 15049 | -6/Cetus | Spotted Cetus Guard 15050 | -6/Cetus | Spotted Cetus Guard 15056 | -6/Cetus | Spotted Cetus Guard 15060 | -6/Cetus | Spotted Cetus Guard 15071 | -6/Cetus | Allies destroyed Cetus Guard 15090 | -6/Cetus | Allies destroyed Cetus Guard 15090 | -6/Cetus | Allies destroyed Cetus Guard 15090 | -6/Cetus | Destroyed Cetus Guard 15117 | -6/Cetus | Lost 4 parts (2n1u1w) 15126 | -6/Cetus | Lost 5 allies 15234 | -6/Cetus | Discovered new exit (range 21) 15273 | -6/Cetus | Spotted Cetus Guard 15273 | -6/Cetus | Spotted Cetus Guard 15273 | -6/Cetus | Spotted Cetus Guard 15273 | -6/Cetus | Spotted Cetus Guard 15283 | -6/Cetus | Allies destroyed Cetus Guard 15285 | -6/Cetus | Allies destroyed Cetus Guard 15293 | -6/Cetus | Allies destroyed Cetus Guard 15306 | -6/Cetus | Discovered exit to Factory (range 21) 15314 | -6/Cetus | Destroyed Cetus Guard 15335 | -6/Cetus | Met Revision 17 15363 | -6/Cetus | Entered Factory 15363 | -5/Factory | Accompanied by 1 ally 15363 | -5/Factory | Evolved 2 slots: Propulsion x2 15400 | -5/Factory | Identified exit to Upper Caves 15642 | -5/Factory | Build established: Scavenger-Skirmisher 15677 | -5/Factory | Found Imp. Powered Armor 15755 | -5/Factory | Garrison activated, responded to threat 15822 | -5/Factory | Lost 3 parts (1p1n1w) 15835 | -5/Factory | Destroyed 12 combat bots 16222 | -5/Factory | Lost 6 parts (1p4n1u) 16435 | -5/Factory | Repaired Broken Adv. Variable Charge Gun 16445 | -5/Factory | Cargo convoy interrupted 16475 | -5/Factory | Build established: Scavenger-Mutant 16523 | -5/Factory | System corruption reached 10% 16554 | -5/Factory | Entered Upper Caves 17604 | -5/Upper Caves | Acquired the password to a Derelict Tinkerer's latest research 17609 | -5/Upper Caves | Found Prototype Special Weapon 17867 | -5/Upper Caves | Build established: Mutant 18049 | -5/Upper Caves | Caught by Unaware searching for contraband prototypes 18436 | -5/Upper Caves | Core integrity fell below 50% 18470 | -5/Upper Caves | Build established: Scavenger-Mutant 18941 | -5/Upper Caves | Discovered new exit (range 19) 18976 | -5/Upper Caves | Identified exit to Upper Caves 18978 | -5/Upper Caves | Entered another Upper Caves area 18978 | -5/Upper Caves | Identified exit to Warlord 18978 | -5/Upper Caves | Discovered exit to Warlord (range 0) 18978 | -5/Upper Caves | Entered Warlord 18999 | -5/Warlord | Lost 3 parts (3n) 19348 | -5/Warlord | Visited the Vortex Lab 19359 | -5/Warlord | Warlord's base attacked by MAIN.C 19364 | -5/Warlord | Found Prototype Energy Cannon 19364 | -5/Warlord | Identified Vortex Driver 19368 | -5/Warlord | Found Vortex Driver 19371 | -5/Warlord | Found Prototype Energy Gun 19375 | -5/Warlord | Found Prototype Energy Gun 19709 | -5/Warlord | Warlord forces counterattacked 19727 | -5/Warlord | Found Prototype Special Weapon 19727 | -5/Warlord | Identified RU-N14's Throwing Claymores v3 19970 | -5/Warlord | Met Warlord 20005 | -5/Warlord | Found Prototype Processor 20005 | -5/Warlord | Identified Exp. Armor Integrity Analyzer 20034 | -5/Warlord | Warlord base infiltrated, sounded retreat 20035 | -5/Warlord | Found Prototype Reactor 20140 | -5/Warlord | Spotted Executioner 20146 | -5/Warlord | Spotted Striker 20178 | -5/Warlord | Spotted B-75 Beast 20181 | -5/Warlord | Spotted B-86 Titan 20183 | -5/Warlord | Spotted Executioner 20185 | -5/Warlord | Spotted Striker 20197 | -5/Warlord | Destroyed Striker 20197 | -5/Warlord | Destroyed Executioner 20212 | -5/Warlord | Found Prototype Launcher 20227 | -5/Warlord | Destroyed 7 combat bots 20228 | -5/Warlord | Lost 9 allies 20256 | -5/Warlord | Discovered new exit (range 9) 20260 | -5/Warlord | Spotted Striker 20260 | -5/Warlord | Spotted Executioner 20268 | -5/Warlord | Identified exit to Proximity Caves 20270 | -5/Warlord | Entered Proximity Caves 20276 | -4/Proximity Caves | Identified Vortex Rail (x2) 20640 | -4/Proximity Caves | Spotted B-86 Titan 20705 | -4/Proximity Caves | Core integrity fell below 20% 20730 | -4/Proximity Caves | Core destroyed Last Messages --------------- 20702_ Slug penetrates Wall. 20703_ C DF>O8WRY,G0FHNQ3IWC/&7E|8 20703_ Slug penetrates Wall. 20704_ H-77 Assassin destroyed. 20707_ Penetrated by Slug. 20709_ Vortex penetrates B-86 Titan. 20709_ Destroyed Hvy. Reflective Plating. 20710_ Vortex Driver blasted off. 20712_ B-86 Titan activates siege mode. 20712_ Vortex penetrates B-86 Titan. 20717_ Penetrated by Slug. 20717_ Slug penetrates Wall. 20718_ Vortex penetrates B-86 Titan. 20718_ B-86 Titan suffers critical hit (Sunder). 20718_ B-86 Titan Rnf. Fission Core ripped off. 20718_ Vortex penetrates B-86 Titan. 20724_ The unstable cave ceiling collapses. 20724_ Vortex penetrates B-86 Titan. 20729_ System corrupted: Heat flow error (+292). 20730_ Overheating: Core damaged (-130). Map ----- +----------------------------------------------------+ | ????##### ##???## #?????? | | ## #???# ###?## #?????? | | ??#???##### #??# # ### ###???? | | ?????????? ### # #???? | | ??????????????# ## ## ##??? | | ??????????????# ## ### ### #??? | | ##?????????????## ## ##?## # #??? | | ???????????????#" ## ###???### # #??? | | ??????????????## ### ##???????# ####??? | | ??????????????#" ##?#######??### # ##??? | | ??????????????# "##???##; #??# # #??? | | ??????????????# ;##??# #??# #??? | | ??????????????# ### #???## #??? | | ??????????????# ##???# #####??? | | ??????????????## #???##### #??????? | | ???????????????## ##???????## #??????? | | ????????????????## #### ;##????????#"#"#?????? | | ?????? ???????## # ;#;;##???????# #?# #????? | | ???????? ????##### #;; ;#??????# #???# #???? | | ??????????# ### #; #?????# #?????# #??? | | ???? ## ##????##???????# #?? | | ???? ;###????????????##?? | | ???? #???????????????? | | ???? % #???????????????? | | ???? ## ]%% ##??????????????? | | ????? ##### ??# ###;;;@ #??????????????? | | ???????????????# ??#;; #????????????? | | ???????????????###???# #???????????? | | ?????????????????????# #???????????? | | ?????????????????????# #??????????? | | ?????????????????????# #??????????? | | ?????????????????????# BB ##??????????? | | ????????????????????? BB% # #???????????? | | ???????????????????? #???????????? | | ???????????????????? % ??????????? | | ??????????????????? % ?????????? | | ??????????????????? ????????? | | ??????????????????### ????????? | | ????????????????????#### ##?????????? | | ???????????????????????## #??????????? | | ????????????????????????? # ???????????? | | ????????????????????????? ##??????????????? | | ????????????????????????? #; #????????????????? | | ????????????????????????? # ##???????????????????? | | ????????????????????????? ? ?????????????????????? | | ?????????????????????????????????????????????????? | | ?????????????????????????????????????????????????? | | ?????????????????????????????????????????????????? | | ?????????????????????????????????????????????????? | | ?????????????????????????????????????????????????? | +----------------------------------------------------+ Best States ------------- Heat Dissipation 130 Energy Generation 25 Energy Capacity 350 Matter Stores 300 Matter Capacity 300 Sight Range 22 Robot Scan Range 16 Terrain Scan Range 24 Terrain Scan Density 2010 Jamming Range 14 Corruption Block 15 Armor Coverage 625 Power Shielding 90 Utility Shielding 66 Weapon Shielding 100 Evasion (%) 57 Targeting Accuracy 14 Melee Accuracy 8 Recoil Reduction 6 Offensive Hacking 20 Defensive Hacking 10 Item Schematics ----------------- Hvy. Riot Gun | -7/Zion | Free Battle Cannon | -7/Zion | Free Flamer | -7/Zion | Free Hvy. Battle Rifle | -7/Zion | Archive Adv. Heat Sink | -7/Zion | Archive Mak. Power Source | -7/Zion | Archive Imp. Proton Missile Launcher | -7/Zion | Archive Proton Missile Launcher | -7/Zion | Archive Imp. Thermal Generator | -7/Zion | Archive Hrd. Heavy Armor Plating | -7/Zion | Archive Mapping Drone Bay | -7/Zion | Archive Adv. System Restoration Module | -7/Zion | Archive Power Maul | -7/Zion | Archive Plasma Flamer | -7/Zion | Archive Core Analyzer | -7/Zion | Archive Lyr. Medium Armor Plating | -7/Zion | Archive Angular Momentum Engine | -7/Zion | Archive Remote Datajack | -7/Zion | Archive Enh. Autogun | -6/Factory | Scanalyzed Robot Schematics ------------------ B-48 Gladiator | -7/Zion | Archive A-02 Transporter | -7/Zion | Archive Fabricated ------------ Nothing Alien Tech Used ----------------- Dimensional Node Initializer Achievements -------------- Woof! Challenges ------------ None Game ------ Seed BarrageProcessingBrace Manual? 0 Play Time 02:57:59 Cumulative 130.1 hours Start 2024.04.14 @ 17:32:09 End 2024.04.14 @ 20:58:39 Sessions 1 Manual Loads 0 Difficulty Rogue Special Mode None Game No. 117 Rogue 117 Adventurer 0 Explorer 0 Win Type - Total 3 Types 2/0/0/1/0/0/0/0/0 Lore% 53 Gallery% 71 Achievement% 54 Wizard Run 0 Options --------- Layout 2 ASCII 0 Keyboard 1 Movement Numpad Keybinds 0 Fullscreen 1 Font 32/SmallcapsGlow Map View 77x44 Zoom Use 0% Tactical HUD 1 Map Filters NONE Filters NONE Steam 1 RUN: 585cad90-6aec-47b4-bb43-facb50123e39